fUST/lending_fUST_20240831
["ID","MTS","AMOUNT","RATE_DAILY","PERIOD"]
[336694090,1725034225713,325.754953,0.00014247,2]
[336694126,1725034238371,-354.159227,0.0001863,2]
[336694127,1725034238384,-325.754953,0.00020707,2]
[336694128,1725034238394,-354.159227,0.00024859,2]
[336694129,1725034238405,-325.754953,0.00027167,2]
[336694130,1725034238415,-240.7572841,0.00027305,2]
[336694131,1725034238425,-500.0,0.00027557,2]
[336694132,1725034238434,-500.0,0.00027609,2]
[336694133,1725034238444,-216.782186,0.00027712,2]
[336694134,1725034238454,-478.77690096,0.00027927,2]
[336694135,1725034238473,-21.22309904,0.00027927,2]
[336694136,1725034238483,-271.69910509,0.00028267,2]
[336694137,1725034238496,-228.30089491,0.00028267,2]
[336694138,1725034238506,-165.6752191,0.00028493,2]
[336694139,1725034238515,-500.0,0.00029314,2]
[336694140,1725034238526,-300.0,0.00029505,2]
[336694141,1725034238536,-200.0,0.00029505,30]
[336694142,1725034238546,-17210.6929457,0.00029506,2]
[336694143,1725034238560,-500.0,0.00029751,2]
[336694144,1725034238570,-656.26,0.00029836,120]
[336694145,1725034238580,-500.0,0.0003008,7]
[336694146,1725034238589,-666.0,0.00030466,120]
[336694147,1725034238599,-888.0,0.0003063,120]
[336694148,1725034238608,-500.0,0.00030839,7]
[336694149,1725034238618,-500.0,0.00030999,7]
[336694150,1725034238631,-1000.0,0.00031,30]
[336694151,1725034238640,-500.0,0.00031021,7]
[336694152,1725034238649,-354.159227,0.00031089,2]
[336694153,1725034238659,-500.0,0.00031417,7]
[336694154,1725034238669,-500.0,0.00031672,7]
[336694155,1725034238679,-211.72398336,0.00031784,7]
[336694161,1725034241062,-288.27601664,0.00031784,7]
[336694162,1725034241072,-139.35856839,0.00031836,7]
[336694163,1725034241084,-360.64143161,0.00031836,7]
[336694164,1725034241095,-1359.11693957,0.00032094,2]
[336694165,1725034241259,-178.21628352,0.00032094,2]
[336694166,1725034241269,-500.0,0.00032194,7]
[336694167,1725034241279,-500.0,0.00032234,7]
[336694168,1725034241290,-150.0,0.00032412,14]
[336694169,1725034241299,-150.0,0.00032412,14]
[336694173,1725034241493,-200.0,0.00032412,14]
[336694174,1725034241504,-5411.61235999,0.00032412,2]
[336694175,1725034241513,-575.30635263,0.00032412,2]
[336694176,1725034241522,-191.0,0.00032456,30]
[336694177,1725034241532,-500.0,0.00032537,7]
[336694178,1725034241542,-500.0,0.00032568,7]
[336694179,1725034241552,-500.0,0.00032753,7]
[336694180,1725034241561,-500.0,0.00032768,7]
[336694181,1725034241572,-500.0,0.00032932,7]
[336694182,1725034241581,-500.0,0.00033326,7]
[336694183,1725034241591,-500.0,0.00033437,7]
[336694184,1725034241600,-325.754953,0.00033626,2]
[336694185,1725034241610,-500.0,0.00033743,7]
[336694186,1725034241619,-622.24360978,0.00033827,5]
[336694187,1725034241631,-500.0,0.00033938,7]
[336694188,1725034241640,-409.5167953,0.00034285,62]
[336694190,1725034241650,-393.97992453,0.00034285,62]
[336694215,1725034243232,-424.65038647,0.00034285,62]
[336694216,1725034243242,-409.5167953,0.00034285,62]
[336694217,1725034243251,-415.7025246,0.00034521,2]
[336694218,1725034243261,-409.5167953,0.00034664,62]
[336694219,1725034243271,-2028.82140529,0.00034982,2]
[336694220,1725034243280,-4840.77038241,0.00035,10]
[336694221,1725034243298,-2905.1,0.00035,10]
[336694222,1725034243310,-15302.5077641,0.00035,10]
[336694223,1725034243320,-2528.36,0.00035,8]
[336694224,1725034243329,-151.0,0.00035112,15]
[336694225,1725034243341,-294.31526677,0.00035273,2]
[336694226,1725034243351,-2000.0,0.00035396,2]
[336694227,1725034243362,-5591.6970957,0.00035397,2]
[336694228,1725034243372,-4822.42556414,0.000354,2]
[336694231,1725034243385,-4822.42556413,0.00035425,2]
[336694234,1725034243394,-4822.42556413,0.0003545,2]
[336694237,1725034243404,-3407.67,0.00035457,3]
[336694240,1725034243413,-4089.2,0.00035467,3]
[336694243,1725034243435,-4822.42556413,0.00035475,2]
[336694245,1725034243446,-500.0,0.00035485,7]
[336694246,1725034243457,-160.2409528,0.00035485,7]
[336694247,1725034243467,-500.0,0.00035485,7]
[336694248,1725034243477,-500.0,0.00035485,7]
[336694249,1725034243487,-500.0,0.00035485,7]
[336694250,1725034243497,-500.0,0.00035485,7]
[336694251,1725034243506,-500.0,0.00035485,7]
[336694252,1725034243516,-500.0,0.00035485,7]
[336694253,1725034243526,-500.0,0.00035485,7]
[336694254,1725034243536,-500.0,0.00035485,7]
[336694255,1725034243546,-358.82879983,0.00035485,7]
[336694256,1725034243555,-477.14775651,0.00035485,7]
[336694257,1725034243565,-500.0,0.00035485,7]
[336694258,1725034243575,-500.0,0.00035485,7]
[336694259,1725034243586,-500.0,0.00035485,7]
[336694260,1725034243596,-450.0,0.00035485,7]
[336694261,1725034243605,-13846.21440075,0.00035486,4]
[336694283,1725034246300,-2839.72,0.00035475,3]
[336694284,1725034246309,-294642.53415684,0.00035486,4]
[336694285,1725034246354,-804.86498997,0.00035486,4]
[336694360,1725034960802,260.603962,0.00014247,2]
[336694381,1725035231360,3601.42,0.00015,2]
[336694386,1725035324581,6780.79945145,0.0001,2]
[336694481,1725035435126,-302.0,0.0001863,2]
[336694482,1725035435139,-52.159228,0.0001863,2]
[336694483,1725035435150,-809.97140976,0.000191,11]
[336694502,1725035438553,-679.60008924,0.000191,11]
[336694503,1725035438563,-1199.93360904,0.00019452,2]
[336694504,1725035438573,-228.14933689,0.0002,11]
[336694505,1725035438585,-1229.11964836,0.0002,11]
[336694506,1725035438598,-302.45563732,0.0002,2]
[336694507,1725035438607,-260.603962,0.00020707,2]
[336694508,1725035438617,-1333.90476032,0.00021,12]
[336694509,1725035438634,-666.09523968,0.00021,12]
[336694510,1725035438643,-354.159228,0.00024859,2]
[336694511,1725035438654,-140.44553232,0.00024999,2]
[336694512,1725035438674,-159.55446768,0.00024999,2]
[336694513,1725035438685,-300.0,0.00024999,2]
[336694514,1725035438695,-11933.91398152,0.00025,2]
[336694515,1725035438705,-6694.32049718,0.00025,2]
[336694516,1725035438716,-16329.96101397,0.0002509,2]
[336694517,1725035438726,-501.00827135,0.00026994,2]
[336694518,1725035438735,-260.603962,0.00027167,2]
[336694519,1725035438745,-500.0,0.00027244,2]
[336694520,1725035438755,-2500.0,0.00027397,2]
[336694521,1725035438765,-500.0,0.0002802,2]
[336694522,1725035438774,-500.0,0.00028357,2]
[336694523,1725035438784,-2500.0,0.0002867,2]
[336694524,1725035438794,-309.66766706,0.0002867,2]
[336694525,1725035438803,-1095.944356,0.00029048,2]
[336694526,1725035438813,-2805.4597559,0.00029221,2]
[336694527,1725035438822,-500.0,0.00029287,2]
[336694528,1725035438832,-500.0,0.0002962,2]
[336694529,1725035438845,-500.0,0.00029717,2]
[336694530,1725035438855,-263.36729332,0.00029776,2]
[336694531,1725035438865,-151.0,0.0003,120]
[336694532,1725035438874,-467.95087258,0.00030471,2]
[336694533,1725035438883,-162.331416,0.00031007,2]
[336694534,1725035438893,-354.159228,0.00031089,2]
[336694535,1725035438902,-500.0,0.00031307,7]
[336694536,1725035438911,-151.0,0.00031616,120]
[336694537,1725035438920,-150.0,0.00032422,14]
[336694538,1725035438930,-150.0,0.00032422,14]
[336694539,1725035438940,-200.0,0.00032422,14]
[336694540,1725035438949,-20007.61374001,0.00032422,7]
[336694541,1725035438958,-3500.0,0.00032422,120]
[336694542,1725035438968,-2271.13181069,0.00032422,2]
[336694543,1725035438978,-200.66609129,0.00032422,4]
[336694544,1725035438988,-500.0,0.00033009,7]
[336694545,1725035438997,-500.0,0.00033054,7]
[336694546,1725035439007,-500.0,0.00033224,7]
[336694547,1725035439017,-151.0,0.00033233,120]
[336694548,1725035439026,-260.603962,0.00033626,2]
[336694549,1725035439036,-500.0,0.00033683,7]
[336694550,1725035439046,-500.0,0.00033781,7]
[336694551,1725035439057,-504.09584578,0.00033905,7]
[336694552,1725035439067,-500.0,0.00034032,7]
[336694553,1725035439076,-316.8898445,0.00034466,2]
[336694554,1725035439086,-500.0,0.00034593,7]
[336694555,1725035439103,-153.0,0.00034795,2]
[336694556,1725035439113,-151.0,0.00034849,120]
[336694557,1725035439123,-549.76505104,0.00035005,7]
[336694558,1725035439133,-500.0,0.00035073,7]
[336694559,1725035439143,-5611.6719691,0.00035256,2]
[336694560,1725035439153,-500.0,0.00035284,7]
[336694561,1725035439164,-1345.16657016,0.00035325,2]
[336694562,1725035439175,-1089.63432502,0.000354,30]
[336694563,1725035439185,-964.48511285,0.000354,2]
[336694564,1725035439196,-964.48511282,0.00035425,2]
[336694565,1725035439206,-964.48511282,0.0003545,2]
[336694566,1725035439220,-1972.03,0.0003547,3]
[336694567,1725035439230,-964.48511282,0.00035475,2]
[336694568,1725035439240,-2366.43,0.0003548,3]
[336694569,1725035439251,-239.94697089,0.00035489,7]
[336694570,1725035439262,-2000.0,0.0003549,2]
[336694571,1725035439273,-25311.8376872,0.0003549,5]
[336694588,1725035440676,-2887.3,0.0003549,5]
[336694589,1725035440689,-7217.64475198,0.0003549,5]
[336694590,1725035440701,-4190.56874024,0.0003549,5]
[336694591,1725035440710,-2116.35095163,0.000355,2]
[336694592,1725035440720,-964.48511282,0.000355,2]
[336694593,1725035440729,-14129.03231047,0.00035516,120]
[336694594,1725035440739,-20258.2858428,0.00035516,120]
[336694595,1725035440759,-1111.59701229,0.00035516,120]
[336694596,1725035440774,-9123.81348151,0.00035516,120]
[336694597,1725035440783,-300.04626014,0.00035573,5]
[336694598,1725035440793,-160.0,0.00035589,10]
[336694599,1725035440803,-477.14775651,0.00035589,7]
[336694600,1725035440812,-500.0,0.00035589,7]
[336694601,1725035440822,-500.0,0.00035589,7]
[336694602,1725035440831,-500.0,0.00035589,7]
[336694603,1725035440841,-500.0,0.00035589,7]
[336694604,1725035440853,-500.0,0.00035589,7]
[336694605,1725035440862,-500.0,0.00035589,7]
[336694606,1725035440871,-500.0,0.00035589,7]
[336694607,1725035440880,-500.0,0.00035589,7]
[336694608,1725035440889,-500.0,0.00035589,7]
[336694609,1725035440899,-500.0,0.00035589,7]
[336694610,1725035440910,-500.0,0.00035589,7]
[336694611,1725035440919,-1258.99636866,0.0003559,5]
[336694612,1725035440929,-1362.71801253,0.0003559,5]
[336694613,1725035440939,-70676.73682545,0.0003559,4]
[336694669,1725035443438,-1643.36,0.0003558,3]
[336694671,1725035443448,-5050.96049718,0.0003559,4]
[336694673,1725035443496,-16632.19095709,0.0003559,4]
[336694796,1725035638152,208.483169,0.00014247,2]
[336694899,1725036300891,198.05901,0.00014247,2]
[336694937,1725036632506,-354.159227,0.0001863,2]
[336694938,1725036632515,-198.05901,0.00020707,2]
[336694939,1725036632526,-354.159227,0.00024859,2]
[336694940,1725036632535,-153.84,0.000266,31]
[336694941,1725036632544,-500.0,0.00027046,2]
[336694942,1725036632554,-198.05901,0.00027167,2]
[336694943,1725036632563,-500.0,0.00027235,2]
[336694944,1725036632572,-500.0,0.00027246,2]
[336694945,1725036632585,-500.0,0.00027827,2]
[336694946,1725036632594,-441.88302,0.00027842,2]
[336694947,1725036632603,-500.0,0.00027954,2]
[336694948,1725036632613,-500.0,0.00027959,2]
[336694949,1725036632623,-500.0,0.00028112,2]
[336694950,1725036632632,-547.972178,0.0002814,2]
[336694952,1725036632641,-463.059286,0.00028649,2]
[336694953,1725036632655,-36.940714,0.00028649,2]
[336694954,1725036632666,-155.75048481,0.00028767,120]
[336694955,1725036632815,-300.0,0.0002886,2]
[336694956,1725036632825,-500.0,0.00028861,2]
[336694957,1725036632835,-500.0,0.00029033,2]
[336694958,1725036632844,-500.0,0.00029315,2]
[336694959,1725036632854,-500.0,0.00029583,2]
[336694960,1725036632863,-13190.197987,0.00029855,2]
[336694961,1725036632872,-151.0,0.0003,120]
[336694962,1725036632881,-198.0,0.0003,2]
[336694963,1725036632891,-236.0,0.0003,2]
[336694964,1725036632900,-151.0,0.0003,120]
[336694965,1725036632909,-170.0,0.00030137,2]
[336694966,1725036632919,-193.726945,0.00030583,2]
[336694967,1725036632928,-500.0,0.00030722,7]
[336694968,1725036632937,-500.0,0.00030921,7]
[336694969,1725036632947,-500.0,0.00030949,7]
[336694970,1725036632956,-354.159227,0.00031089,2]
[336694971,1725036632965,-153.84,0.000311,31]
[336694972,1725036632976,-153.84,0.000311,31]
[336694973,1725036632985,-500.0,0.00031147,7]
[336694974,1725036632995,-1643.721898,0.000313,9]
[336694975,1725036633005,-500.0,0.00031422,7]
[336694976,1725036633014,-500.0,0.00031435,7]
[336694977,1725036633024,-198.0,0.00031644,2]
[336694978,1725036633035,-151.0,0.00031671,120]
[336694979,1725036633045,-500.0,0.00031713,7]
[336694980,1725036633055,-1000.0,0.000318,9]
[336694981,1725036633065,-1000.0,0.000323,9]
[336694982,1725036633075,-150.0,0.0003243,14]
[336694983,1725036633084,-150.0,0.0003243,14]
[336694984,1725036633093,-200.0,0.0003243,14]
[336694985,1725036633102,-500.0,0.00032467,7]
[336694986,1725036633112,-500.0,0.00032477,7]
[336694987,1725036633122,-1177.02074889,0.00032491,2]
[336694988,1725036633131,-151.0,0.00032603,120]
[336694989,1725036633141,-500.0,0.00032625,7]
[336694990,1725036633150,-500.0,0.0003264,7]
[336694991,1725036633159,-500.0,0.00032818,7]
[336694992,1725036633169,-151.0,0.00033342,120]
[336694993,1725036633178,-500.0,0.0003361,7]
[336694994,1725036633188,-198.05901,0.00033626,2]
[336694995,1725036633198,-500.0,0.00033792,7]
[336694996,1725036633208,-12386.74881525,0.0003444,10]
[336695004,1725036638660,-5999.952764,0.0003444,10]
[336695005,1725036638675,-86732.40002514,0.0003444,10]
[336695006,1725036638685,-500.0,0.00034475,7]
[336695007,1725036638699,-500.0,0.00034557,7]
[336695008,1725036638713,-500.0,0.00034616,31]
[336695009,1725036638726,-500.0,0.00034648,7]
[336695010,1725036638741,-500.0,0.00034692,7]
[336695011,1725036638751,-153.0,0.00034761,2]
[336695012,1725036638764,-500.0,0.00034788,2]
[336695013,1725036638777,-500.0,0.00034788,31]
[336695014,1725036638791,-500.0,0.00034788,31]
[336695016,1725036638804,-5256.8902118,0.00034789,2]
[336695018,1725036638816,-6314.1,0.00034869,3]
[336695019,1725036638830,-5261.75,0.00034869,3]
[336695020,1725036638844,-450.16806322,0.00034873,5]
[336695021,1725036638859,-681.35900627,0.00034879,5]
[336695022,1725036638871,-243685.911956,0.00034879,4]
[336695023,1725036638883,-160.2409528,0.00034887,7]
[336695024,1725036638895,-334.00342956,0.00034887,7]
[336695025,1725036638907,-500.0,0.00034887,7]
[336695026,1725036638920,-500.0,0.00034887,7]
[336695027,1725036638933,-500.0,0.00034887,7]
[336695028,1725036638947,-500.0,0.00034887,7]
[336695029,1725036638959,-500.0,0.00034887,7]
[336695030,1725036638969,-500.0,0.00034887,7]
[336695031,1725036638982,-500.0,0.00034887,7]
[336695032,1725036638994,-500.0,0.00034887,7]
[336695033,1725036639007,-500.0,0.00034887,7]
[336695034,1725036639020,-500.0,0.00034887,7]
[336695035,1725036639034,-500.0,0.00034888,31]
[336695036,1725036639047,-3405.7,0.00034888,31]
[336695037,1725036639061,-500.0,0.00034888,31]
[336695038,1725036639074,-389.73523834,0.00034888,31]
[336695039,1725036639087,-210.66146475,0.00034888,31]
[336695040,1725036639100,-1129.23,0.00034888,31]
[336695041,1725036639111,-500.0,0.00034888,31]
[336695042,1725036639122,-500.0,0.00034888,31]
[336695043,1725036639132,-500.0,0.00034888,31]
[336695044,1725036639144,-500.0,0.00034888,31]
[336695045,1725036639158,-4663.5,0.00034888,31]
[336695046,1725036639170,-3770.43,0.00034888,31]
[336695047,1725036639183,-500.0,0.00034888,31]
[336695048,1725036639195,-2816.25,0.00034888,31]
[336695049,1725036639208,-500.0,0.00034888,31]
[336695050,1725036639219,-3046.15,0.00034888,31]
[336695051,1725036639232,-500.0,0.00034888,31]
[336695052,1725036639244,-500.0,0.00034888,31]
[336695053,1725036639255,-500.0,0.00034888,31]
[336695054,1725036639267,-500.0,0.00034888,31]
[336695055,1725036639278,-535.21,0.00034888,31]
[336695056,1725036639291,-680.45,0.00034888,31]
[336695057,1725036639305,-3505.99,0.00034888,31]
[336695058,1725036639316,-1509.72,0.00034888,31]
[336695059,1725036639331,-500.0,0.00034888,31]
[336695060,1725036639344,-550.69269132,0.00034889,31]
[336695061,1725036639356,-503.37008425,0.00034889,31]
[336695062,1725036639368,-618.98540167,0.00034889,31]
[336695063,1725036639379,-500.0,0.00034889,31]
[336695064,1725036639390,-500.0,0.00034889,31]
[336695065,1725036639402,-500.0,0.00034889,31]
[336695066,1725036639413,-508.83337001,0.00034889,31]
[336695067,1725036639425,-500.0,0.00034889,31]
[336695068,1725036639436,-503.43996752,0.00034889,31]
[336695069,1725036639447,-500.0,0.00034889,31]
[336695070,1725036639459,-500.0,0.00034889,31]
[336695071,1725036639471,-500.0,0.00034889,31]
[336695072,1725036639485,-500.0,0.00034889,31]
[336695073,1725036639498,-457.01059891,0.00034889,31]
[336695074,1725036639512,-500.0,0.00034889,31]
[336695075,1725036639525,-500.0,0.00034889,31]
[336695076,1725036639536,-500.0,0.00034889,31]
[336695077,1725036639549,-500.0,0.00034889,31]
[336695078,1725036639560,-500.0,0.00034889,31]
[336695079,1725036639572,-500.0,0.00034889,31]
[336695080,1725036639584,-500.0,0.00034889,31]
[336695081,1725036639599,-500.0,0.00034889,31]
[336695082,1725036639610,-500.0,0.00034889,31]
[336695083,1725036639623,-500.0,0.00034889,31]
[336695084,1725036639636,-500.0,0.00034889,31]
[336695085,1725036639647,-500.0,0.00034889,31]
[336695086,1725036639660,-500.0,0.00034889,31]
[336695087,1725036639672,-500.0,0.00034889,31]
[336695088,1725036639684,-500.0,0.00034889,31]
[336695089,1725036639696,-500.0,0.00034889,31]
[336695090,1725036639707,-500.0,0.00034889,31]
[336695091,1725036639719,-500.0,0.00034889,31]
[336695092,1725036639731,-300.57300942,0.00034889,31]
[336695093,1725036639743,-500.0,0.00034889,31]
[336695094,1725036639754,-500.0,0.00034889,31]
[336695095,1725036639766,-500.0,0.00034889,31]
[336695096,1725036639778,-150.0,0.00034889,31]
[336695097,1725036639791,-500.0,0.00034889,31]
[336695098,1725036639803,-500.0,0.00034889,31]
[336695099,1725036639815,-500.0,0.00034889,31]
[336695100,1725036639827,-500.0,0.00034889,31]
[336695101,1725036639838,-500.0,0.00034889,31]
[336695102,1725036639852,-500.0,0.00034889,31]
[336695103,1725036639864,-500.0,0.00034889,31]
[336695104,1725036639875,-500.0,0.00034889,31]
[336695105,1725036639887,-500.0,0.00034889,31]
[336695106,1725036639898,-500.0,0.00034889,31]
[336695107,1725036639910,-500.0,0.00034889,31]
[336695108,1725036639922,-500.0,0.00034889,31]
[336695109,1725036639935,-500.0,0.00034889,31]
[336695110,1725036639948,-500.0,0.00034889,31]
[336695111,1725036639960,-2100.08,0.00034889,31]
[336695112,1725036639972,-500.0,0.00034889,31]
[336695113,1725036639986,-500.0,0.00034889,31]
[336695114,1725036639998,-500.0,0.00034889,31]
[336695115,1725036640009,-500.0,0.00034889,31]
[336695116,1725036640021,-5131.46,0.00034889,31]
[336695117,1725036640033,-500.0,0.00034889,31]
[336695118,1725036640047,-12074.45,0.00034889,8]
[336695119,1725036640059,-1271.78,0.00034889,31]
[336695120,1725036640071,-500.0,0.00034889,31]
[336695121,1725036640082,-501.01595461,0.00034889,31]
[336695122,1725036640094,-497.94773447,0.00034889,31]
[336695123,1725036640105,-3131.65,0.00034889,31]
[336695125,1725036640117,-500.0,0.00034889,31]
[336695126,1725036640130,-500.0,0.00034889,31]
[336695127,1725036640141,-1231.74,0.00034889,21]
[336695128,1725036640153,-500.0,0.00034889,31]
[336695129,1725036640165,-505.98289776,0.00034889,31]
[336695131,1725036640177,-500.0,0.00034889,31]
[336695132,1725036640189,-500.0,0.00034889,31]
[336695133,1725036640201,-500.0,0.00034889,31]
[336695134,1725036640213,-500.0,0.00034889,31]
[336695135,1725036640223,-500.0,0.00034889,31]
[336695136,1725036640232,-500.0,0.00034889,31]
[336695137,1725036640242,-500.0,0.00034889,31]
[336695138,1725036640252,-3444.34,0.00034889,31]
[336695139,1725036640263,-1828.63,0.00034889,31]
[336695140,1725036640273,-500.0,0.00034889,31]
[336695141,1725036640480,-500.0,0.00034889,31]
[336695142,1725036640498,-500.0,0.00034889,31]
[336695143,1725036640507,-500.0,0.00034889,31]
[336695145,1725036640518,-500.0,0.00034889,31]
[336695146,1725036640527,-500.0,0.00034889,31]
[336695147,1725036640538,-500.0,0.00034889,31]
[336695148,1725036640550,-500.0,0.00034889,31]
[336695149,1725036640559,-500.0,0.00034889,31]
[336695150,1725036640568,-500.0,0.00034889,31]
[336695151,1725036640578,-500.0,0.00034889,31]
[336695152,1725036640591,-500.0,0.00034889,31]
[336695153,1725036640600,-500.0,0.00034889,31]
[336695154,1725036640610,-500.0,0.00034889,31]
[336695155,1725036640620,-493.03358021,0.00034889,31]
[336695156,1725036640631,-500.0,0.00034889,31]
[336695157,1725036640641,-500.0,0.00034889,31]
[336695158,1725036640652,-500.0,0.00034889,31]
[336695159,1725036640664,-500.0,0.00034889,31]
[336695160,1725036640674,-500.0,0.00034889,31]
[336695161,1725036640685,-500.0,0.00034889,31]
[336695162,1725036640695,-500.0,0.00034889,31]
[336695163,1725036640705,-500.0,0.00034889,31]
[336695164,1725036640715,-500.0,0.00034889,31]
[336695165,1725036640725,-500.0,0.00034889,31]
[336695166,1725036640735,-500.0,0.00034889,31]
[336695167,1725036640744,-500.0,0.00034889,31]
[336695168,1725036640754,-500.0,0.00034889,31]
[336695169,1725036640763,-500.0,0.00034889,31]
[336695170,1725036640773,-500.0,0.00034889,31]
[336695171,1725036640783,-500.0,0.00034889,30]
[336695172,1725036640793,-604.46407347,0.00034889,31]
[336695173,1725036640802,-500.0,0.00034889,31]
[336695174,1725036640811,-500.0,0.00034889,31]
[336695175,1725036640820,-500.0,0.00034889,31]
[336695176,1725036640829,-500.0,0.00034889,31]
[336695177,1725036640839,-1777.12,0.00034889,31]
[336695178,1725036640848,-500.0,0.00034889,31]
[336695179,1725036640857,-500.0,0.00034889,31]
[336695180,1725036640868,-500.0,0.00034889,31]
[336695181,1725036640878,-500.0,0.00034889,31]
[336695182,1725036640887,-500.0,0.00034889,31]
[336695183,1725036640897,-500.0,0.00034889,31]
[336695184,1725036640906,-500.0,0.00034889,31]
[336695185,1725036640916,-541.43444545,0.00034889,31]
[336695186,1725036640926,-500.0,0.00034889,31]
[336695187,1725036640936,-379.10228694,0.00034889,31]
[336695188,1725036640947,-206.16780181,0.00034889,31]
[336695189,1725036640958,-500.0,0.00034889,31]
[336695190,1725036640968,-500.0,0.00034889,31]
[336695191,1725036640979,-1111.6,0.00034889,31]
[336695192,1725036640989,-500.0,0.00034889,31]
[336695193,1725036641000,-335.39050983,0.00034889,31]
[336695194,1725036641010,-500.0,0.00034889,31]
[336695195,1725036641020,-500.0,0.00034889,31]
[336695196,1725036641030,-502.98242271,0.00034889,31]
[336695197,1725036641039,-500.0,0.00034889,31]
[336695198,1725036641050,-500.0,0.00034889,31]
[336695199,1725036641060,-500.0,0.00034889,31]
[336695200,1725036641069,-708.81,0.00034889,31]
[336695201,1725036641079,-500.0,0.00034889,31]
[336695202,1725036641088,-500.0,0.00034889,31]
[336695203,1725036641098,-500.0,0.00034889,31]
[336695204,1725036641107,-500.0,0.00034889,31]
[336695205,1725036641117,-500.0,0.00034889,31]
[336695206,1725036641126,-500.0,0.00034889,31]
[336695207,1725036641135,-500.0,0.00034889,31]
[336695208,1725036641145,-500.0,0.00034889,31]
[336695209,1725036641155,-500.0,0.00034889,31]
[336695210,1725036641164,-500.0,0.00034889,31]
[336695211,1725036641174,-500.0,0.00034889,31]
[336695212,1725036641184,-500.0,0.00034889,31]
[336695213,1725036641193,-500.0,0.00034889,31]
[336695214,1725036641203,-500.0,0.00034889,31]
[336695215,1725036641214,-500.0,0.00034889,31]
[336695216,1725036641223,-500.98058033,0.00034889,31]
[336695217,1725036641233,-500.0,0.00034889,31]
[336695218,1725036641243,-500.0,0.00034889,31]
[336695219,1725036641253,-500.0,0.00034889,31]
[336695220,1725036641262,-500.0,0.00034889,31]
[336695221,1725036641272,-500.0,0.00034889,31]
[336695222,1725036641281,-500.0,0.00034889,31]
[336695223,1725036641292,-500.0,0.00034889,31]
[336695224,1725036641304,-500.0,0.00034889,31]
[336695225,1725036641313,-501.31249848,0.00034889,31]
[336695226,1725036641323,-500.0,0.00034889,31]
[336695227,1725036641332,-500.0,0.00034889,31]
[336695228,1725036641341,-1848.44,0.00034889,31]
[336695229,1725036641351,-500.0,0.00034889,31]
[336695230,1725036641361,-500.0,0.00034889,31]
[336695231,1725036641370,-500.0,0.00034889,31]
[336695232,1725036641380,-500.0,0.00034889,31]
[336695233,1725036641389,-487.02629032,0.00034889,31]
[336695234,1725036641398,-352.10720609,0.00034889,31]
[336695235,1725036641409,-500.0,0.00034889,31]
[336695236,1725036641418,-500.0,0.00034889,31]
[336695237,1725036641428,-503.02118907,0.00034889,31]
[336695238,1725036641437,-500.0,0.00034889,31]
[336695239,1725036641446,-500.0,0.00034889,31]
[336695240,1725036641456,-500.0,0.00034889,31]
[336695241,1725036641465,-1231.51,0.00034889,31]
[336695242,1725036641474,-1168.87,0.00034889,31]
[336695243,1725036641485,-494.0148376,0.00034889,31]
[336695244,1725036641494,-500.0,0.00034889,31]
[336695245,1725036641503,-500.0,0.00034889,31]
[336695246,1725036641513,-500.0,0.00034889,31]